[Event "Titled Tuesday Blitz May 4 2021"]
[White "Avila Pavas, Santiago"]
[Black "Howell, David W L"]
[WhiteFideId "4437128"]
[BlackFideId "410608"]
[WhiteElo "2244"]
[BlackElo "2643"]
[Result "1-0"]
[Round "02"]
[TimeControl "180+1"]
[Date "2021.05.04"]
[WhiteClock "0:00:02"]
[BlackClock "0:00:04"]

1. d4 {[%clk 0:03:00]}  d5 {[%clk 0:02:58]} 2. Bf4 {[%clk 0:03:01]}  c5 {[%clk 0:02:54]} 3. e3 {[%clk 0:03:01]}  cxd4 {[%clk 0:02:54]} 4. exd4 {[%clk 0:03:01]}  Nc6 {[%clk 0:02:55]} 5. c3 {[%clk 0:03:01]}  f6 {[%clk 0:02:55]} 6. Nf3 {[%clk 0:03:00]}  g5 {[%clk 0:02:55]} 7. Bg3 {[%clk 0:03:00]}  h5 {[%clk 0:02:55]} 8. h4 {[%clk 0:03:00]}  g4 {[%clk 0:02:55]} 9. Nfd2 {[%clk 0:02:58]}  Nh6 {[%clk 0:02:50]} 10. Bd3 {[%clk 0:02:54]}  Bf5 {[%clk 0:02:43]} 11. Qc2 {[%clk 0:02:25]}  e6 {[%clk 0:02:35]} 12. O-O {[%clk 0:02:24]}  Rc8 {[%clk 0:02:31]} 13. Re1 {[%clk 0:02:15]}  Kf7 {[%clk 0:02:31]} 14. Bxf5 {[%clk 0:02:06]}  Nxf5 {[%clk 0:02:32]} 15. Qd3 {[%clk 0:02:03]}  Qb6 {[%clk 0:02:27]} 16. Nb3 {[%clk 0:01:53]}  Qa6 {[%clk 0:02:24]} 17. Qd1 {[%clk 0:01:36]}  Nxg3 {[%clk 0:02:17]} 18. fxg3 {[%clk 0:01:37]}  Bd6 {[%clk 0:02:16]} 19. Nc5 {[%clk 0:01:31]}  Bxc5 {[%clk 0:02:10]} 20. dxc5 {[%clk 0:01:32]}  Ne7 {[%clk 0:02:11]} 21. b4 {[%clk 0:01:29]}  b6 {[%clk 0:02:08]} 22. Nd2 {[%clk 0:01:06]}  bxc5 {[%clk 0:02:06]} 23. Nb3 {[%clk 0:01:07]}  cxb4 {[%clk 0:02:04]} 24. cxb4 {[%clk 0:01:08]}  Qb6+ {[%clk 0:01:58]} 25. Kh2 {[%clk 0:01:08]}  Qxb4 {[%clk 0:01:59]} 26. Rf1 {[%clk 0:01:05]}  Rc3 {[%clk 0:01:50]} 27. Nd4 {[%clk 0:00:58]}  Qd6 {[%clk 0:01:45]} 28. Qe1 {[%clk 0:00:54]}  Rd3 {[%clk 0:01:38]} 29. Rd1 {[%clk 0:00:51]}  Rxd1 {[%clk 0:01:32]} 30. Qxd1 {[%clk 0:00:52]}  e5 {[%clk 0:01:28]} 31. Nb5 {[%clk 0:00:46]}  Qb6 {[%clk 0:01:25]} 32. Nc3 {[%clk 0:00:45]}  Qe6 {[%clk 0:01:23]} 33. Qa4 {[%clk 0:00:44]}  a6 {[%clk 0:01:22]} 34. Qb4 {[%clk 0:00:40]}  Rc8 {[%clk 0:01:20]} 35. Na4 {[%clk 0:00:36]}  Rc4 {[%clk 0:01:18]} 36. Qb3 {[%clk 0:00:34]}  d4 {[%clk 0:01:14]} 37. Nb2 {[%clk 0:00:27]}  Rc3 {[%clk 0:01:14]} 38. Qb8 {[%clk 0:00:27]}  Rc8 {[%clk 0:01:03]} 39. Qb4 {[%clk 0:00:25]}  Nd5 {[%clk 0:00:50]} 40. Qa5 {[%clk 0:00:23]}  Ne3 {[%clk 0:00:48]} 41. Rf2 {[%clk 0:00:21]}  Kg6 {[%clk 0:00:38]} 42. Nd3 {[%clk 0:00:21]}  Rc3 {[%clk 0:00:35]} 43. Nb4 {[%clk 0:00:08]}  Qd6 {[%clk 0:00:25]} 44. Nxa6 {[%clk 0:00:04]}  e4 {[%clk 0:00:24]} 45. Nb4 {[%clk 0:00:02]}  Nc4 {[%clk 0:00:14]} 46. Qf5+ {[%clk 0:00:02]}  Kg7 {[%clk 0:00:13]} 47. Rf4 {[%clk 0:00:03]}  e3 {[%clk 0:00:09]} 48. Nd5 {[%clk 0:00:03]}  e2 {[%clk 0:00:06]} 49. Nxf6 {[%clk 0:00:02]}  Qxf4 {[%clk 0:00:04]} 50. Nxh5+ {[%clk 0:00:02]}  Kh6 {[%clk 0:00:04]} 51. Nxf4 {[%clk 0:00:02]}  e1=Q {[%clk 0:00:04]} 52. Qg6# {[%clk 0:00:02]} 1-0


[Site "https://www.chess.com"]

[Event "Titled Tuesday Blitz May 4 2021"]
[White "Bellahcene, Bilel"]
[Black "Amorim, Daniel Madson De Medeiro"]
[WhiteFideId "696358"]
[BlackFideId "2124912"]
[WhiteElo "2493"]
[BlackElo "2179"]
[Result "1-0"]
[Round "02"]
[TimeControl "180+1"]
[Date "2021.05.04"]
[WhiteClock "0:00:58"]
[BlackClock "0:00:11"]

1. e4 {[%clk 0:03:00]}  e6 {[%clk 0:02:58]} 2. d4 {[%clk 0:03:00]}  d5 {[%clk 0:02:57]} 3. exd5 {[%clk 0:03:01]}  exd5 {[%clk 0:02:57]} 4. Nf3 {[%clk 0:03:02]}  Nf6 {[%clk 0:02:57]} 5. Bd3 {[%clk 0:03:02]}  Bd6 {[%clk 0:02:54]} 6. Qe2+ {[%clk 0:03:03]}  Qe7 {[%clk 0:02:39]} 7. Qxe7+ {[%clk 0:03:01]}  Kxe7 {[%clk 0:02:40]} 8. O-O {[%clk 0:03:01]}  c6 {[%clk 0:02:40]} 9. Re1+ {[%clk 0:03:01]}  Be6 {[%clk 0:02:35]} 10. c4 {[%clk 0:02:59]}  dxc4 {[%clk 0:02:16]} 11. Bxc4 {[%clk 0:03:00]}  Re8 {[%clk 0:02:12]} 12. Ng5 {[%clk 0:02:48]}  Kd7 {[%clk 0:02:09]} 13. Nxe6 {[%clk 0:02:26]}  fxe6 {[%clk 0:02:08]} 14. Nc3 {[%clk 0:02:26]}  e5 {[%clk 0:01:55]} 15. d5 {[%clk 0:02:10]}  cxd5 {[%clk 0:01:49]} 16. Nxd5 {[%clk 0:02:02]}  Nxd5 {[%clk 0:01:48]} 17. Bxd5 {[%clk 0:02:03]}  Nc6 {[%clk 0:01:49]} 18. Rd1 {[%clk 0:02:03]}  Rad8 {[%clk 0:01:44]} 19. Be3 {[%clk 0:02:02]}  Kc7 {[%clk 0:01:13]} 20. Rac1 {[%clk 0:01:53]}  a6 {[%clk 0:01:07]} 21. Be4 {[%clk 0:01:50]}  g6 {[%clk 0:00:56]} 22. Rd2 {[%clk 0:01:50]}  Bb4 {[%clk 0:00:40]} 23. Rdc2 {[%clk 0:01:48]}  Rd6 {[%clk 0:00:37]} 24. a3 {[%clk 0:01:43]}  Ba5 {[%clk 0:00:37]} 25. Bc5 {[%clk 0:01:42]}  Rde6 {[%clk 0:00:34]} 26. Bd5 {[%clk 0:01:42]}  Rf6 {[%clk 0:00:32]} 27. b4 {[%clk 0:01:37]}  Bb6 {[%clk 0:00:32]} 28. a4 {[%clk 0:01:37]}  Bxc5 {[%clk 0:00:32]} 29. Rxc5 {[%clk 0:01:38]}  Kb6 {[%clk 0:00:22]} 30. a5+ {[%clk 0:01:32]}  Kc7 {[%clk 0:00:21]} 31. b5 {[%clk 0:01:33]}  axb5 {[%clk 0:00:21]} 32. Rxb5 {[%clk 0:01:33]}  Rd6 {[%clk 0:00:20]} 33. Rcb1 {[%clk 0:01:27]}  Rb8 {[%clk 0:00:18]} 34. Bxc6 {[%clk 0:01:25]}  Rxc6 {[%clk 0:00:18]} 35. Rxe5 {[%clk 0:01:25]}  Rd6 {[%clk 0:00:18]} 36. Re7+ {[%clk 0:01:24]}  Rd7 {[%clk 0:00:19]} 37. Re5 {[%clk 0:01:11]}  Ra8 {[%clk 0:00:18]} 38. h4 {[%clk 0:01:10]}  Ra6 {[%clk 0:00:18]} 39. g3 {[%clk 0:01:09]}  Kd6 {[%clk 0:00:18]} 40. Reb5 {[%clk 0:01:08]}  Ra7 {[%clk 0:00:17]} 41. Kg2 {[%clk 0:01:07]}  Kc7 {[%clk 0:00:17]} 42. h5 {[%clk 0:01:08]}  Rd6 {[%clk 0:00:17]} 43. h6 {[%clk 0:01:06]}  Rda6 {[%clk 0:00:16]} 44. Re1 {[%clk 0:01:06]}  Kd7 {[%clk 0:00:14]} 45. Rbe5 {[%clk 0:01:05]}  Rxa5 {[%clk 0:00:13]} 46. Re7+ {[%clk 0:01:06]}  Kd6 {[%clk 0:00:14]} 47. Rxh7 {[%clk 0:01:06]}  b5 {[%clk 0:00:14]} 48. Rh8 {[%clk 0:00:58]}  Ra8 {[%clk 0:00:14]} 49. Ree8 {[%clk 0:00:58]}  Rxe8 {[%clk 0:00:13]} 50. Rxe8 {[%clk 0:00:59]}  b4 {[%clk 0:00:11]} 51. h7 {[%clk 0:00:58]} 1-0


[Site "https://www.chess.com"]

[Event "Titled Tuesday Blitz May 4 2021"]
[White "Benevides Demasi, Joao Otavio"]
[Black "Van der Velden, Bram"]
[WhiteFideId "30916224"]
[BlackFideId "1015753"]
[WhiteElo "2099"]
[BlackElo "2155"]
[Result "0-1"]
[Round "02"]
[TimeControl "180+1"]
[Date "2021.05.04"]
[WhiteClock "0:00:03"]
[BlackClock "0:00:27"]

1. Nf3 {[%clk 0:03:00]}  d5 {[%clk 0:02:59]} 2. g3 {[%clk 0:02:56]}  Nf6 {[%clk 0:02:58]} 3. Bg2 {[%clk 0:02:55]}  e6 {[%clk 0:02:58]} 4. O-O {[%clk 0:02:55]}  c5 {[%clk 0:02:58]} 5. d3 {[%clk 0:02:56]}  Nc6 {[%clk 0:02:57]} 6. c4 {[%clk 0:02:56]}  Be7 {[%clk 0:02:57]} 7. Nc3 {[%clk 0:02:56]}  O-O {[%clk 0:02:56]} 8. Rb1 {[%clk 0:02:55]}  d4 {[%clk 0:02:38]} 9. Na4 {[%clk 0:02:54]}  e5 {[%clk 0:02:38]} 10. a3 {[%clk 0:02:54]}  a5 {[%clk 0:02:38]} 11. e3 {[%clk 0:02:53]}  dxe3 {[%clk 0:02:30]} 12. Bxe3 {[%clk 0:02:51]}  Nd7 {[%clk 0:02:13]} 13. Re1 {[%clk 0:02:36]}  Rb8 {[%clk 0:02:02]} 14. Nd2 {[%clk 0:02:05]}  Nd4 {[%clk 0:01:59]} 15. Ne4 {[%clk 0:01:51]}  f5 {[%clk 0:01:54]} 16. Nec3 {[%clk 0:01:50]}  Nf6 {[%clk 0:01:50]} 17. Nd5 {[%clk 0:01:45]}  Nxd5 {[%clk 0:01:43]} 18. Bxd5+ {[%clk 0:01:43]}  Kh8 {[%clk 0:01:43]} 19. Bd2 {[%clk 0:01:38]}  b5 {[%clk 0:01:41]} 20. Nc3 {[%clk 0:01:26]}  b4 {[%clk 0:01:40]} 21. Ne2 {[%clk 0:01:17]}  Ne6 {[%clk 0:01:14]} 22. f4 {[%clk 0:01:05]}  Nc7 {[%clk 0:01:06]} 23. fxe5 {[%clk 0:01:00]}  Nxd5 {[%clk 0:01:06]} 24. cxd5 {[%clk 0:01:00]}  Qxd5 {[%clk 0:01:06]} 25. Nf4 {[%clk 0:01:00]}  Qc6 {[%clk 0:01:04]} 26. axb4 {[%clk 0:00:56]}  Bb7 {[%clk 0:00:58]} 27. Qh5 {[%clk 0:00:33]}  axb4 {[%clk 0:00:54]} 28. e6 {[%clk 0:00:29]}  Kg8 {[%clk 0:00:52]} 29. Re5 {[%clk 0:00:17]}  Bf6 {[%clk 0:00:48]} 30. Rxf5 {[%clk 0:00:12]}  Bd4+ {[%clk 0:00:48]} 31. Kf1 {[%clk 0:00:07]}  Rxf5 {[%clk 0:00:27]} 32. Qxf5 {[%clk 0:00:05]}  Qh1+ {[%clk 0:00:27]} 33. Ke2 {[%clk 0:00:03]}  Bf3# {[%clk 0:00:27]} 0-1


[Site "https://www.chess.com"]

[Event "Titled Tuesday Blitz May 4 2021"]
[White "Bommini, Mounika Akshaya"]
[Black "Shahinyan, David"]
[WhiteFideId "25019872"]
[BlackFideId "13304380"]
[WhiteElo "1610"]
[BlackElo "2372"]
[Result "1/2-1/2"]
[Round "02"]
[TimeControl "180+1"]
[Date "2021.05.04"]
[WhiteClock "0:00:16"]
[BlackClock "0:00:12"]

1. e4 {[%clk 0:03:00]}  d6 {[%clk 0:03:00]} 2. d4 {[%clk 0:02:59]}  Nf6 {[%clk 0:03:00]} 3. Nc3 {[%clk 0:03:00]}  e5 {[%clk 0:03:00]} 4. dxe5 {[%clk 0:02:58]}  dxe5 {[%clk 0:02:59]} 5. Qxd8+ {[%clk 0:02:59]}  Kxd8 {[%clk 0:02:59]} 6. Bg5 {[%clk 0:02:59]}  Be6 {[%clk 0:02:58]} 7. O-O-O {[%clk 0:02:58]}  Nd7 {[%clk 0:02:57]} 8. f4 {[%clk 0:02:52]}  exf4 {[%clk 0:02:55]} 9. e5 {[%clk 0:02:41]}  h6 {[%clk 0:02:55]} 10. Bxf4 {[%clk 0:02:30]}  Ng4 {[%clk 0:02:54]} 11. Rd2 {[%clk 0:02:17]}  g5 {[%clk 0:02:45]} 12. Bg3 {[%clk 0:02:09]}  Bg7 {[%clk 0:02:44]} 13. Nf3 {[%clk 0:02:07]}  Kc8 {[%clk 0:02:44]} 14. h4 {[%clk 0:02:04]}  Ngxe5 {[%clk 0:02:34]} 15. hxg5 {[%clk 0:01:50]}  Nxf3 {[%clk 0:02:30]} 16. gxf3 {[%clk 0:01:49]}  hxg5 {[%clk 0:02:29]} 17. Rxh8+ {[%clk 0:01:42]}  Bxh8 {[%clk 0:02:29]} 18. Nb5 {[%clk 0:01:42]}  Be5 {[%clk 0:02:13]} 19. Bxe5 {[%clk 0:01:22]}  Nxe5 {[%clk 0:02:13]} 20. Nd4 {[%clk 0:01:13]}  c5 {[%clk 0:00:58]} 21. Nxe6 {[%clk 0:01:02]}  fxe6 {[%clk 0:00:58]} 22. Bh3 {[%clk 0:01:02]}  Kc7 {[%clk 0:00:44]} 23. Bxe6 {[%clk 0:01:01]}  Nxf3 {[%clk 0:00:39]} 24. Rd5 {[%clk 0:00:49]}  Re8 {[%clk 0:00:28]} 25. Rxc5+ {[%clk 0:00:29]}  Kd6 {[%clk 0:00:27]} 26. Rf5 {[%clk 0:00:27]}  Nd4 {[%clk 0:00:20]} 27. Rd5+ {[%clk 0:00:27]}  Kxe6 {[%clk 0:00:18]} 28. Rxd4 {[%clk 0:00:27]}  Kf5 {[%clk 0:00:16]} 29. Kd2 {[%clk 0:00:24]}  g4 {[%clk 0:00:16]} 30. Rd7 {[%clk 0:00:23]}  g3 {[%clk 0:00:16]} 31. Rf7+ {[%clk 0:00:23]}  Kg4 {[%clk 0:00:15]} 32. Rg7+ {[%clk 0:00:21]}  Kf3 {[%clk 0:00:13]} 33. Rf7+ {[%clk 0:00:21]}  Kg2 {[%clk 0:00:14]} 34. Rxb7 {[%clk 0:00:20]}  Kh2 {[%clk 0:00:12]} 35. Rh7+ {[%clk 0:00:19]}  Kg1 {[%clk 0:00:12]} 36. Rxa7 {[%clk 0:00:18]}  g2 {[%clk 0:00:12]} 37. Rg7 {[%clk 0:00:17]}  Kf2 {[%clk 0:00:12]} 38. Rf7+ {[%clk 0:00:17]}  Kg3 {[%clk 0:00:12]} 39. Rg7+ {[%clk 0:00:17]}  Kf2 {[%clk 0:00:12]} 40. Rf7+ {[%clk 0:00:16]}  Kg3 {[%clk 0:00:12]} 41. Rg7+ {[%clk 0:00:16]}  Kf2 {[%clk 0:00:12]} 1/2-1/2


[Site "https://www.chess.com"]

[Event "Titled Tuesday Blitz May 4 2021"]
[White "Bon, Michael"]
[Black "Perske, Thore"]
[WhiteFideId "620696"]
[BlackFideId "12902195"]
[WhiteElo "2431"]
[BlackElo "2315"]
[Result "0-1"]
[Round "02"]
[TimeControl "180+1"]
[Date "2021.05.04"]
[WhiteClock "0:00:01"]
[BlackClock "0:00:05"]

1. e4 {[%clk 0:03:00]}  e6 {[%clk 0:03:00]} 2. d4 {[%clk 0:03:00]}  d5 {[%clk 0:03:00]} 3. exd5 {[%clk 0:02:59]}  exd5 {[%clk 0:03:01]} 4. Nf3 {[%clk 0:02:59]}  Bg4 {[%clk 0:03:01]} 5. h3 {[%clk 0:02:52]}  Bh5 {[%clk 0:03:01]} 6. Qe2+ {[%clk 0:02:51]}  Qe7 {[%clk 0:02:59]} 7. Be3 {[%clk 0:02:50]}  Nc6 {[%clk 0:02:59]} 8. Nc3 {[%clk 0:02:43]}  O-O-O {[%clk 0:02:59]} 9. O-O-O {[%clk 0:02:42]}  Nf6 {[%clk 0:02:56]} 10. g4 {[%clk 0:02:12]}  Bg6 {[%clk 0:02:51]} 11. Ne5 {[%clk 0:01:59]}  Nxe5 {[%clk 0:02:46]} 12. dxe5 {[%clk 0:01:59]}  Qxe5 {[%clk 0:02:45]} 13. f4 {[%clk 0:01:59]}  Qe8 {[%clk 0:02:15]} 14. f5 {[%clk 0:01:53]}  Bb4 {[%clk 0:02:13]} 15. fxg6 {[%clk 0:01:41]}  Bxc3 {[%clk 0:02:13]} 16. bxc3 {[%clk 0:01:38]}  hxg6 {[%clk 0:02:13]} 17. Bd4 {[%clk 0:01:14]}  Ne4 {[%clk 0:02:08]} 18. Bg2 {[%clk 0:01:05]}  Qa4 {[%clk 0:01:53]} 19. Bxe4 {[%clk 0:00:59]}  Rhe8 {[%clk 0:01:46]} 20. Kb1 {[%clk 0:00:42]}  Rxe4 {[%clk 0:01:43]} 21. Qf2 {[%clk 0:00:36]}  f6 {[%clk 0:01:32]} 22. Rhe1 {[%clk 0:00:34]}  Rde8 {[%clk 0:01:19]} 23. Rxe4 {[%clk 0:00:33]}  Rxe4 {[%clk 0:01:20]} 24. Re1 {[%clk 0:00:31]}  b6 {[%clk 0:01:11]} 25. Rxe4 {[%clk 0:00:29]}  dxe4 {[%clk 0:01:12]} 26. Qe2 {[%clk 0:00:24]}  c5 {[%clk 0:01:04]} 27. Bf2 {[%clk 0:00:21]}  Kb7 {[%clk 0:01:03]} 28. Bg3 {[%clk 0:00:21]}  g5 {[%clk 0:00:56]} 29. Qd2 {[%clk 0:00:18]}  Qb5+ {[%clk 0:00:52]} 30. Ka1 {[%clk 0:00:17]}  Qf1+ {[%clk 0:00:45]} 31. Kb2 {[%clk 0:00:17]}  Qb5+ {[%clk 0:00:31]} 32. Kc1 {[%clk 0:00:17]}  Ka6 {[%clk 0:00:23]} 33. Qe1 {[%clk 0:00:06]}  Qc4 {[%clk 0:00:20]} 34. Kd2 {[%clk 0:00:05]}  Qd5+ {[%clk 0:00:15]} 35. Ke3 {[%clk 0:00:05]}  Qxa2 {[%clk 0:00:13]} 36. Qe2+ {[%clk 0:00:04]}  Ka5 {[%clk 0:00:11]} 37. c4 {[%clk 0:00:02]}  Qa1 {[%clk 0:00:05]} 38. Be1+ {[%clk 0:00:01]}  Ka4 {[%clk 0:00:05]} 0-1


[Site "https://www.chess.com"]

[Event "Titled Tuesday Blitz May 4 2021"]
[White "Bongo Akanga Ndjila, Barthelemy"]
[Black "Jain, Naveen"]
[WhiteFideId "10609431"]
[BlackFideId "5003970"]
[WhiteElo "1803"]
[BlackElo "2036"]
[Result "0-1"]
[Round "02"]
[TimeControl "180+1"]
[Date "2021.05.04"]
[WhiteClock "0:00:10"]
[BlackClock "0:00:30"]

1. d4 {[%clk 0:03:00]}  Nf6 {[%clk 0:02:59]} 2. Nf3 {[%clk 0:03:00]}  c5 {[%clk 0:02:59]} 3. c3 {[%clk 0:02:58]}  d5 {[%clk 0:02:58]} 4. Bg5 {[%clk 0:02:55]}  Ne4 {[%clk 0:02:57]} 5. Bf4 {[%clk 0:02:52]}  Nc6 {[%clk 0:02:56]} 6. Nbd2 {[%clk 0:02:51]}  Bg4 {[%clk 0:02:54]} 7. e3 {[%clk 0:02:49]}  e6 {[%clk 0:02:52]} 8. Be2 {[%clk 0:02:47]}  Bd6 {[%clk 0:02:51]} 9. Bxd6 {[%clk 0:02:39]}  Qxd6 {[%clk 0:02:51]} 10. O-O {[%clk 0:02:34]}  Bf5 {[%clk 0:02:31]} 11. Nxe4 {[%clk 0:02:26]}  Bxe4 {[%clk 0:02:31]} 12. a4 {[%clk 0:02:22]}  Bxf3 {[%clk 0:02:24]} 13. Bxf3 {[%clk 0:02:21]}  c4 {[%clk 0:02:22]} 14. a5 {[%clk 0:02:18]}  f5 {[%clk 0:02:21]} 15. a6 {[%clk 0:02:14]}  b6 {[%clk 0:02:19]} 16. Qa4 {[%clk 0:02:10]}  O-O {[%clk 0:02:18]} 17. b3 {[%clk 0:02:01]}  cxb3 {[%clk 0:02:15]} 18. Qxb3 {[%clk 0:01:53]}  Na5 {[%clk 0:02:10]} 19. Qb5 {[%clk 0:01:47]}  Rac8 {[%clk 0:02:09]} 20. Be2 {[%clk 0:01:26]}  Rxc3 {[%clk 0:02:06]} 21. Rfc1 {[%clk 0:01:20]}  Rcc8 {[%clk 0:01:44]} 22. h3 {[%clk 0:01:09]}  h6 {[%clk 0:01:44]} 23. Qb2 {[%clk 0:01:05]}  Nc4 {[%clk 0:01:21]} 24. Qb3 {[%clk 0:01:00]}  Nd2 {[%clk 0:01:17]} 25. Qb2 {[%clk 0:00:55]}  Ne4 {[%clk 0:01:16]} 26. Bd3 {[%clk 0:00:48]}  Nf6 {[%clk 0:01:07]} 27. Bb5 {[%clk 0:00:32]}  f4 {[%clk 0:01:03]} 28. Bd3 {[%clk 0:00:28]}  fxe3 {[%clk 0:01:01]} 29. fxe3 {[%clk 0:00:27]}  Qg3 {[%clk 0:01:00]} 30. Qe2 {[%clk 0:00:24]}  Ne4 {[%clk 0:00:37]} 31. Bxe4 {[%clk 0:00:23]}  dxe4 {[%clk 0:00:38]} 32. Rf1 {[%clk 0:00:21]}  Rxf1+ {[%clk 0:00:35]} 33. Rxf1 {[%clk 0:00:19]}  Rc3 {[%clk 0:00:35]} 34. Qf2 {[%clk 0:00:15]}  Qxe3 {[%clk 0:00:33]} 35. Qxe3 {[%clk 0:00:13]}  Rxe3 {[%clk 0:00:34]} 36. Rd1 {[%clk 0:00:12]}  Ra3 {[%clk 0:00:31]} 37. d5 {[%clk 0:00:13]}  exd5 {[%clk 0:00:30]} 38. Rxd5 {[%clk 0:00:12]}  Rxa6 {[%clk 0:00:31]} 39. Re5 {[%clk 0:00:10]}  Ra4 {[%clk 0:00:30]} 40. Rxe4 {[%clk 0:00:10]}  Rxe4 {[%clk 0:00:30]} 0-1


[Site "https://www.chess.com"]

[Event "Titled Tuesday Blitz May 4 2021"]
[White "Borawski, Jakub"]
[Black "Seul, Georg"]
[WhiteFideId "1143000"]
[BlackFideId "4601653"]
[WhiteElo "2020"]
[BlackElo "2332"]
[Result "0-1"]
[Round "02"]
[TimeControl "180+1"]
[Date "2021.05.04"]
[WhiteClock "0:01:13"]
[BlackClock "0:01:06"]

1. e4 {[%clk 0:03:00]}  e5 {[%clk 0:02:59]} 2. Nf3 {[%clk 0:03:01]}  Nc6 {[%clk 0:02:59]} 3. Bb5 {[%clk 0:03:01]}  a6 {[%clk 0:02:59]} 4. Ba4 {[%clk 0:03:01]}  Nf6 {[%clk 0:02:59]} 5. O-O {[%clk 0:03:00]}  Be7 {[%clk 0:02:59]} 6. Re1 {[%clk 0:03:00]}  b5 {[%clk 0:02:59]} 7. Bb3 {[%clk 0:03:00]}  d6 {[%clk 0:02:57]} 8. c3 {[%clk 0:02:59]}  O-O {[%clk 0:02:56]} 9. d4 {[%clk 0:02:59]}  Bg4 {[%clk 0:02:54]} 10. Be3 {[%clk 0:02:57]}  exd4 {[%clk 0:02:52]} 11. cxd4 {[%clk 0:02:57]}  Na5 {[%clk 0:02:52]} 12. Bc2 {[%clk 0:02:57]}  Nc4 {[%clk 0:02:49]} 13. Bc1 {[%clk 0:02:57]}  c5 {[%clk 0:02:49]} 14. b3 {[%clk 0:02:56]}  Nb6 {[%clk 0:02:48]} 15. Bb2 {[%clk 0:02:56]}  cxd4 {[%clk 0:02:38]} 16. Bxd4 {[%clk 0:02:53]}  Rc8 {[%clk 0:02:33]} 17. Nbd2 {[%clk 0:02:49]}  Nfd7 {[%clk 0:02:28]} 18. h3 {[%clk 0:02:45]}  Bh5 {[%clk 0:02:25]} 19. Rc1 {[%clk 0:02:39]}  Bf6 {[%clk 0:02:16]} 20. g4 {[%clk 0:02:38]}  Bg6 {[%clk 0:02:15]} 21. Nf1 {[%clk 0:02:36]}  Bxd4 {[%clk 0:02:08]} 22. Nxd4 {[%clk 0:02:34]}  d5 {[%clk 0:02:06]} 23. Ng3 {[%clk 0:02:25]}  dxe4 {[%clk 0:02:00]} 24. Bxe4 {[%clk 0:02:24]}  Rxc1 {[%clk 0:01:58]} 25. Qxc1 {[%clk 0:02:25]}  Re8 {[%clk 0:01:50]} 26. Ngf5 {[%clk 0:02:14]}  Bxf5 {[%clk 0:01:43]} 27. Bxf5 {[%clk 0:02:01]}  Rxe1+ {[%clk 0:01:38]} 28. Qxe1 {[%clk 0:02:02]}  g6 {[%clk 0:01:37]} 29. Nc6 {[%clk 0:01:54]}  Qf6 {[%clk 0:01:10]} 30. Bxd7 {[%clk 0:01:15]}  Nxd7 {[%clk 0:01:08]} 31. Qe8+ {[%clk 0:01:15]}  Nf8 {[%clk 0:01:07]} 32. Qe5 {[%clk 0:01:13]}  Qxc6 {[%clk 0:01:06]} 0-1


[Site "https://www.chess.com"]

[Event "Titled Tuesday Blitz May 4 2021"]
[White "Bortnyk, Olexandr"]
[Black "Sellitti, Federico"]
[WhiteFideId "14120828"]
[BlackFideId "821829"]
[WhiteElo "2723"]
[BlackElo "2609"]
[Result "0-1"]
[Round "02"]
[TimeControl "180+1"]
[Date "2021.05.04"]
[WhiteClock "0:00:02"]
[BlackClock "0:00:13"]

1. e4 {[%clk 0:03:00]}  c5 {[%clk 0:02:59]} 2. c3 {[%clk 0:02:59]}  Nf6 {[%clk 0:02:59]} 3. e5 {[%clk 0:03:00]}  Nd5 {[%clk 0:02:59]} 4. d4 {[%clk 0:03:01]}  cxd4 {[%clk 0:02:58]} 5. Nf3 {[%clk 0:03:02]}  e6 {[%clk 0:02:58]} 6. cxd4 {[%clk 0:03:03]}  Nc6 {[%clk 0:02:55]} 7. a3 {[%clk 0:03:02]}  d6 {[%clk 0:02:53]} 8. Bd3 {[%clk 0:03:00]}  Be7 {[%clk 0:02:51]} 9. O-O {[%clk 0:02:59]}  b6 {[%clk 0:02:46]} 10. Qe2 {[%clk 0:02:58]}  Bb7 {[%clk 0:02:26]} 11. Bd2 {[%clk 0:02:46]}  h6 {[%clk 0:02:22]} 12. Re1 {[%clk 0:02:31]}  O-O {[%clk 0:02:21]} 13. Qe4 {[%clk 0:02:30]}  f5 {[%clk 0:02:04]} 14. exf6 {[%clk 0:02:30]}  Rxf6 {[%clk 0:02:05]} 15. Qh7+ {[%clk 0:02:08]}  Kf7 {[%clk 0:02:00]} 16. Nh4 {[%clk 0:02:08]}  Nxd4 {[%clk 0:01:51]} 17. Bg6+ {[%clk 0:02:07]}  Rxg6 {[%clk 0:01:52]} 18. Qxg6+ {[%clk 0:02:06]}  Kg8 {[%clk 0:01:49]} 19. Bxh6 {[%clk 0:02:01]}  Qf8 {[%clk 0:01:44]} 20. Re4 {[%clk 0:01:50]}  Bf6 {[%clk 0:01:41]} 21. Nd2 {[%clk 0:01:42]}  Ne7 {[%clk 0:01:24]} 22. Qg4 {[%clk 0:01:14]}  Bxe4 {[%clk 0:01:23]} 23. Nxe4 {[%clk 0:01:08]}  Bxh4 {[%clk 0:01:24]} 24. Bg5 {[%clk 0:00:41]}  Bxg5 {[%clk 0:01:15]} 25. Nxg5 {[%clk 0:00:42]}  Nef5 {[%clk 0:01:04]} 26. Qh5 {[%clk 0:00:38]}  Nh6 {[%clk 0:01:04]} 27. Rd1 {[%clk 0:00:37]}  Qf6 {[%clk 0:00:58]} 28. Ne4 {[%clk 0:00:18]}  Qe5 {[%clk 0:00:58]} 29. Ng5 {[%clk 0:00:14]}  Rf8 {[%clk 0:00:54]} 30. Qg6 {[%clk 0:00:12]}  Qf5 {[%clk 0:00:47]} 31. Qxf5 {[%clk 0:00:13]}  Ndxf5 {[%clk 0:00:47]} 32. Nxe6 {[%clk 0:00:13]}  Re8 {[%clk 0:00:45]} 33. Nf4 {[%clk 0:00:13]}  Rd8 {[%clk 0:00:43]} 34. h3 {[%clk 0:00:13]}  Kf7 {[%clk 0:00:41]} 35. g4 {[%clk 0:00:12]}  Ne7 {[%clk 0:00:41]} 36. Kg2 {[%clk 0:00:12]}  Nhg8 {[%clk 0:00:38]} 37. Rc1 {[%clk 0:00:10]}  Rd7 {[%clk 0:00:36]} 38. Nd3 {[%clk 0:00:09]}  Nf6 {[%clk 0:00:35]} 39. Rd1 {[%clk 0:00:09]}  Ng6 {[%clk 0:00:32]} 40. f4 {[%clk 0:00:08]}  Re7 {[%clk 0:00:29]} 41. Kf3 {[%clk 0:00:07]}  Nd5 {[%clk 0:00:26]} 42. f5 {[%clk 0:00:06]}  Re3+ {[%clk 0:00:23]} 43. Kf2 {[%clk 0:00:06]}  Ne5 {[%clk 0:00:23]} 44. Nb4 {[%clk 0:00:03]}  Rf3+ {[%clk 0:00:23]} 45. Kg2 {[%clk 0:00:04]}  Nf4+ {[%clk 0:00:23]} 46. Kg1 {[%clk 0:00:03]}  Nxh3+ {[%clk 0:00:21]} 47. Kh2 {[%clk 0:00:03]}  Nxg4+ {[%clk 0:00:21]} 48. Kg2 {[%clk 0:00:03]}  Ne5 {[%clk 0:00:18]} 49. Rxd6 {[%clk 0:00:04]}  Nf4+ {[%clk 0:00:18]} 50. Kh2 {[%clk 0:00:04]}  Rh3+ {[%clk 0:00:18]} 51. Kg1 {[%clk 0:00:05]}  Ng4 {[%clk 0:00:17]} 52. Nc6 {[%clk 0:00:04]}  Rg3+ {[%clk 0:00:17]} 53. Kf1 {[%clk 0:00:04]}  Rg2 {[%clk 0:00:16]} 54. Rd7+ {[%clk 0:00:04]}  Kf6 {[%clk 0:00:16]} 55. Nd8 {[%clk 0:00:04]}  Rxb2 {[%clk 0:00:15]} 56. Rf7+ {[%clk 0:00:04]}  Kg5 {[%clk 0:00:15]} 57. Rxg7+ {[%clk 0:00:04]}  Kxf5 {[%clk 0:00:16]} 58. Rf7+ {[%clk 0:00:04]}  Ke4 {[%clk 0:00:16]} 59. Ke1 {[%clk 0:00:05]}  Ke3 {[%clk 0:00:14]} 60. Kd1 {[%clk 0:00:04]}  Rd2+ {[%clk 0:00:13]} 61. Kc1 {[%clk 0:00:05]}  Nd3+ {[%clk 0:00:14]} 62. Kb1 {[%clk 0:00:06]}  Ngf2 {[%clk 0:00:14]} 63. Re7+ {[%clk 0:00:05]}  Ne4 {[%clk 0:00:14]} 64. Nc6 {[%clk 0:00:05]}  Rd1+ {[%clk 0:00:12]} 65. Kc2 {[%clk 0:00:05]}  Rc1+ {[%clk 0:00:13]} 66. Kb3 {[%clk 0:00:05]}  Rxc6 {[%clk 0:00:14]} 67. Rxa7 {[%clk 0:00:05]}  Kd4 {[%clk 0:00:13]} 68. Rd7+ {[%clk 0:00:05]}  Rd6 {[%clk 0:00:12]} 69. Rh7 {[%clk 0:00:05]}  Kc5 {[%clk 0:00:11]} 70. a4 {[%clk 0:00:05]}  Kc6 {[%clk 0:00:11]} 71. Ra7 {[%clk 0:00:04]}  Ndc5+ {[%clk 0:00:12]} 72. Kc4 {[%clk 0:00:03]}  Rd1 {[%clk 0:00:12]} 73. a5 {[%clk 0:00:03]}  Rc1+ {[%clk 0:00:12]} 74. Kd4 {[%clk 0:00:04]}  bxa5 {[%clk 0:00:13]} 75. Ke3 {[%clk 0:00:02]}  Rc3+ {[%clk 0:00:12]} 76. Kd4 {[%clk 0:00:02]}  Ra3 {[%clk 0:00:13]} 77. Kc4 {[%clk 0:00:02]}  Ra4# {[%clk 0:00:13]} 0-1


[Site "https://www.chess.com"]